[Event "CZE-ch U16 Open 2023"]
[Site "Teplice"]
[Date "2023.03.16"]
[Round "7.1"]
[White "Lang, Simon"]
[Black "Prazak, Daniel"]
[Result "1/2-1/2"]
[ECO "C67"]
[WhiteElo "1974"]
[BlackElo "2064"]
[Annotator "TA"]
[PlyCount "64"]
[EventDate "2023.03.09"]
[EventType "swiss"]
[EventCountry "CZE"]
[SourceTitle "playchess.com"]
[Source "ChessBase"]
[SourceQuality "1"]
[TimeControl "40/5400+30:1800+30"]

{[%evp 18,64,16,18,27,-14,0,0,0,0,0,0,21,24,27,22,26,26,26,26,26,26,26,28,32,15,31,0,8,4,12,0,0,0,17,0,0,0,0,0,0,0,0,0,0,0,0,0,0]} 1. e4 {[%emt 0:00:21]} e5 {[%emt 0:00:54]} 2. Nf3 {[%emt 0:00:59]} Nc6 {[%emt 0:00:08]} 3. Bb5 {[%emt 0:01:12]} Nf6 {[%emt 0:00:24]} 4. O-O {[%emt 0:00:55][%cal Bh1f1,Bf1e1,Be1e5][%mdl 32]} Nxe4 {[%emt 0:00:56]} 5. Re1 {[%emt 0:00:36]} Nd6 {[%emt 0:00:43]} 6. Nxe5 {[%emt 0:01:21]} Be7 {[%emt 0:00:09]} 7. Bf1 {[%emt 0:01:30]} Nxe5 {[%emt 0:00:26]} 8. Rxe5 {[%emt 0:00:18]} O-O {[%emt 0:00:18]} 9. d4 {[%emt 0:02:38][%cal Bd2d4,Bd4d5][%mdl 32]} Bf6 {[%emt 0:00:20]} 10. Re1 {[%emt 0:01:25]} Re8 {[%emt 0:02:23] C67: Ruy Lopez: Berlin Defence: 4 0-0 Nxe4.} 11. d5 {[%emt 0:07:55]} Rxe1 {[%emt 0:04:23]} 12. Qxe1 {[%emt 0:00:13]} b6 {[%emt 0:00:54]} 13. Nc3 {[%emt 0:14:26]} Bb7 {[%emt 0:03:48][%cal Bc8b7,Bb7d5,Bd5e6][%mdl 32]} 14. Bf4 {[%emt 0:03:02]} Bxc3 {[%emt 0:07:31]} 15. Qxc3 {[%emt 0:00:53]} Bxd5 {[%emt 0:01:58]} 16. Rd1 {[%emt 0:06:08] [#]} Be6 $146 {[%emt 0:13:50]} ({Predecessor:} 16... Bc6 17. Bxd6 cxd6 18. Rxd6 Qe7 19. Rd3 Re8 20. Re3 Qf8 21. h3 g6 22. Bc4 Rxe3 23. Qxe3 {½-½ Munguntuul,B (2426)-Shen,Y (2459) CHN-chT China 2015 (20.6)}) 17. Bxd6 {[%emt 0:03:13]} cxd6 {[%emt 0:00:06]} 18. Rxd6 {[%emt 0:00:54]} Rc8 {[%emt 0:01:36]} 19. Qd2 {[%emt 0:01:55]} Qf6 {[%emt 0:07:48]} 20. c3 {[%emt 0:06:43]} Qe5 {[%emt 0:04:35]} 21. a4 {[%emt 0:08:28]} g6 {[%emt 0:03:30]} 22. Qd4 {[%emt 0:05:00]} Qe1 {[%emt 0:01:03] The position is equal.} 23. Qd1 {[%emt 0:00:56]} Qe5 {[%emt 0:00:56]} (23... Qxd1 {simplifies} 24. Rxd1 Kf8 25. f3 Rc5) 24. Qd4 {[%emt 0:00:33]} Qe1 {[%emt 0:00:36] [#] Strongly threatening ...Bc4.} 25. Qd1 {[%emt 0:05:11]} Qe5 {[%emt 0:01:04]} (25... Qxd1 {simplifies} 26. Rxd1 Kf8 27. Rd4 Ke7) 26. g3 {[%emt 0:03:38]} Rc5 {[%emt 0:05:27]} 27. Qd4 {[%emt 0:04:08]} Qe1 {[%emt 0:01:43] White must now prevent ...Bc4.} 28. Qd1 $1 {[%emt 0:00:39]} Qe5 {[%emt 0:00:21]} 29. Qd4 {[%emt 0:00:42]} Qe1 {[%emt 0:00:07] [#] ...Re5 would be deadly.} 30. Qd1 $1 {[%emt 0:00:11]} Qe5 {[%emt 0:00:07]} 31. Qd4 {[%emt 0:04:33]} Qe1 {[%emt 0:00:10] Hoping for ...Re5.} 32. Qd1 $1 {[%emt 0:00:25]} Qe5 {[%emt 0:00:09] An even fight not without its subleties.   Weighted Error Value: White=0.05 (flawless) /Black=0.04 (flawless)} 1/2-1/2

[Event "CZE-ch U16 Open 2023"]
[Site "Teplice"]
[Date "2023.03.16"]
[Round "7.2"]
[White "Tillmann, Stanislav"]
[Black "Fizer, Marek"]
[Result "0-1"]
[ECO "B92"]
[WhiteElo "1907"]
[BlackElo "1929"]
[Annotator "TA"]
[PlyCount "142"]
[EventDate "2023.03.09"]
[EventType "swiss"]
[EventCountry "CZE"]
[SourceTitle "playchess.com"]
[Source "ChessBase"]
[SourceQuality "1"]
[TimeControl "40/5400+30:1800+30"]

{[%evp 19,142,17,5,2,-1,0,0,-2,0,0,0,0,0,0,0,-27,0,-53,-49,-42,-33,-82,-27,-102,0,0,0,-6,0,0,22,-22,-20,-23,0,-7,0,-50,-22,-17,0,0,53,48,51,46,53,44,59,-114,274,-63,-71,-93,-105,-127,-75,-85,-42,-42,-42,-77,-45,-86,-52,-62,-65,-173,-173,-223,-223,-795,-345,-316,-314,-327,-182,-290,-283,-283,-260,-411,-404,-404,-404,-452,-404,-404,-397,-396,-370,-377,-329,-814,-725,-1124,-1124,-29969,-29970,-29970,-29971,-29972,-29973,-29972,-29970,-29969,-29968,-29967,-29963,-29960,-29961,-29959,-29963,-29962,-29965,-29974,-29975,-29975,-29976,-29977,-29977,-29977,-29978,-29979,-29980]} 1. e4 {[%emt 0:00:02]} c5 {[%emt 0:00:09]} 2. Nf3 {[%emt 0:00:05]} d6 {[%emt 0:00:11]} 3. d4 {[%emt 0:00:03]} cxd4 {[%emt 0:00:08]} 4. Nxd4 {[%emt 0:00:02]} Nf6 {[%emt 0:00:21]} 5. Nc3 {[%emt 0:00:06]} a6 {[%emt 0:00:39]} 6. Be2 {[%emt 0:00:32]} e5 {[%emt 0:00:34]} 7. Nf3 {[%emt 0:00:26]} Be7 {[%emt 0:00:33]} 8. Bg5 {[%emt 0:01:13]} Be6 {[%emt 0:01:25]} 9. O-O {[%emt 0:01:15]} O-O {[%emt 0:01:24]} 10. Bxf6 {[%emt 0:03:06]} Bxf6 {[%emt 0:01:21]} 11. Nd5 {[%emt 0:00:13] B92: Sicilian Najdorf: 6 Be2.} Nd7 {[%emt 0:01:48]} 12. Bc4 {[%emt 0:06:08]} Qc8 {[%emt 0:03:44]} 13. Bb3 {[%emt 0:12:03] [#] The position is equal.} Qc6 $146 {[%emt 0:02:42]} ({Predecessor:} 13... Bd8 14. Qe2 Nc5 15. Rfd1 Kh8 16. Nd2 b5 17. a4 bxa4 18. Ba2 Rb8 19. Nc4 Qc6 {1-0 Cassi,E (1965)-Saravanan,D (1736) Wch U20 Girls 38th 2022 (10)}) 14. Qe2 {[%emt 0:03:27]} Bd8 {[%emt 0:05:56]} 15. Rad1 {[%emt 0:10:08]} Nc5 {[%emt 0:04:28]} 16. Rfe1 {[%emt 0:08:47]} b5 {[%emt 0:16:44][%cal Bb7b5,Bb5b4][%mdl 32]} 17. Qd2 {[%emt 0:09:01]} a5 {[%emt 0:11:44]} 18. Nc3 {[%emt 0:03:12]} ({Better is} 18. a3 $11) 18... b4 $15 {[%emt 0:05:11] Hoping for ...Nxb3.} 19. Nd5 {[%emt 0:00:06]} Rb8 {[%emt 0:01:38]} 20. Bc4 {[%emt 0:03:10]} (20. Qe2 $15) 20... Bg4 {[%emt 0:04:32]} (20... f5 21. exf5 Rxf5 22. Ne3 $16) ({Black should try} 20... Na4 $1 $17 {[%cal Ra4b2] Strongly threatening ...Nxb2!} 21. Bb3 (21. b3 Nb2 $17) 21... Nxb2) 21. Qe3 {[%emt 0:03:02]} (21. b3 $11 {keeps the balance.}) 21... Ne6 {[%emt 0:02:01]} (21... Na4 $1 $17 {[%cal Ra4b2] ...Nxb2! would be deadly.} 22. Bb3 (22. b3 Nb2 $17) 22... Nxb2) 22. b3 $11 {[%emt 0:06:09]} Kh8 {[%emt 0:09:03]} 23. h3 {[%emt 0:01:29]} Bh5 {[%emt 0:05:01]} 24. c3 {[%emt 0:01:59]} Bb6 {[%emt 0:05:05]} 25. Qd3 {[%emt 0:09:41]} Bc5 {[%emt 0:02:18]} 26. Rc1 {[%emt 0:01:59]} Qb7 {[%emt 0:03:24]} 27. Nh4 {[%emt 0:04:26]} Qa7 {[%emt 0:01:27]} 28. Qg3 {[%emt 0:00:26]} (28. Rf1 $11) 28... bxc3 {[%emt 0:02:01]} (28... g6 {with more complications.} 29. Nf6 Nf4 30. cxb4 axb4 31. Rc2 Qe7) 29. Nf5 {[%emt 0:01:12]} Bg6 {[%emt 0:03:23]} 30. Rxc3 {[%emt 0:04:56]} (30. Qxc3 $2 Bxf2+ 31. Kh1 Bxe1 32. Qxe1 a4 $19) 30... Bb4 {[%emt 0:01:49]} (30... Nd4 $11) 31. Nxb4 $14 {[%emt 0:00:12]} axb4 {[%emt 0:00:08]} 32. Rd3 {[%emt 0:00:39]} Bxf5 {[%emt 0:00:49][%mdl 64] Remove Defender} 33. exf5 {[%emt 0:00:03]} Nd4 {[%emt 0:01:08]} 34. Qg5 {[%emt 0:01:00]} (34. f6 $1 $14 {was the only good move.} g6 35. Qe3) 34... Qd7 $2 {[%emt 0:01:50][%mdl 8192] [#]} (34... Qxa2 35. f6 Rg8 36. Bxf7 gxf6 37. Qxf6+ Rg7 38. Rg3 $18) (34... f6 $17 35. Qd2 Qc5) 35. Rxd4 $2 {[%emt 0:03:48]} f6 $1 $36 {[%emt 0:01:20][%mdl 2048] Black has strong initiative.} 36. Qh5 {[%emt 0:00:37][%cal Oh5h7] White threatens Qxh7+! and mate.} exd4 {[%emt 0:00:17]} 37. Re4 {[%emt 0:00:25][%cal Oh5h7] [#] Qxh7+! would kill now.} h6 {[%emt 0:00:38]} ({Black should play} 37... d5 $1 {[%cal Rd5e4]} 38. Rxd4 Qe7) 38. Rxd4 $17 {[%emt 0:01:20]} Rfe8 {[%emt 0:00:56]} 39. Be6 {[%emt 0:00:10]} Qc6 {[%emt 0:01:22][%cal Od6d5]} 40. h4 {[%emt 0:03:16]} Qc1+ {[%emt 0:00:27]} 41. Kh2 {[%emt 0:01:07][%cal Od4b4]} Qc5 {[%emt 0:03:27]} 42. Qd1 {[%emt 0:04:53]} Ra8 {[%emt 0:02:41]} 43. Qd2 {[%emt 0:02:12] Black continues to play with concentration.} (43. Rd2 $15) 43... Rxa2 $1 $19 {[%emt 0:01:05][%mdl 64] Deflection} 44. Qxb4 {[%emt 0:02:31] [#]} (44. Qf4 {is a better defense.}) 44... Qe5+ $1 {[%emt 0:01:39]} ({And not} 44... Rxf2 45. Qxc5 dxc5 46. Rc4 $17) 45. f4 $2 {[%emt 0:00:59]} (45. Kh3) 45... Qe2 {[%emt 0:00:26]} (45... Qe3 $142 {( -> ...Qf2)} 46. Bd5 Re2) 46. Qb7 {[%emt 0:02:03]} Qf2 {[%emt 0:00:42]} 47. Rd3 {[%emt 0:00:44]} Ra1 {[%emt 0:10:21]} (47... Qxf4+ $2 {perishes.} 48. Rg3 Qxh4+ 49. Rh3) (47... Qxh4+ $142 48. Rh3 Qxf4+ 49. Rg3 Qh4+ 50. Rh3 Qf2) 48. Rg3 {[%emt 0:05:40] [#]} (48. Qd7 {keeps fighting.} Rea8 49. Qxd6 Qxh4+ 50. Rh3) 48... Rh1+ $3 {[%emt 0:00:20][%mdl 576] Skewer, Deflection} 49. Kxh1 {[%emt 0:00:02][%csl Gg3][%cal Rb7g7]} Qxg3 {[%emt 0:00:08][%mdl 4096] Endgame KQR-KQB} 50. b4 {[%emt 0:01:23]} (50. Qc6 $142 Rd8 51. Qf3 Qxh4+ 52. Kg1) 50... Qxh4+ {[%emt 0:00:39]} (50... Qxf4 $2 {too greedy.} 51. h5 $19) 51. Kg1 {[%emt 0:00:03]} d5 {[%emt 0:08:55]} 52. b5 {[%emt 0:01:27]} Qxf4 {[%emt 0:00:49]} 53. Qxd5 {[%emt 0:02:51]} Qe3+ {[%emt 0:00:52]} 54. Kh2 {[%emt 0:01:11]} Qe5+ {[%emt 0:00:32]} 55. Qxe5 {[%emt 0:00:50]} fxe5 {[%emt 0:00:04] KR-KB} 56. g4 $2 {[%emt 0:02:08] [#]} (56. Bd7 Rd8 57. Bc6) 56... g6 $1 {[%emt 0:01:52]} 57. Bf7 {[%emt 0:06:11]} (57. Kg3 Rb8) 57... Rb8 {[%emt 0:00:14]} 58. fxg6 {[%emt 0:00:12]} Rxb5 {[%emt 0:00:24] Black mates.} 59. Kg3 {[%emt 0:00:24]} Kg7 {[%emt 0:00:17]} 60. Kf3 {[%emt 0:00:05]} Rb4 {[%emt 0:00:06]} 61. Kg3 {[%emt 0:00:20]} Kf6 {[%emt 0:00:35]} 62. Kf3 {[%emt 0:00:12]} Rf4+ {[%emt 0:00:37]} 63. Kg3 {[%emt 0:00:08]} Ra4 {[%emt 0:00:53]} 64. Kf3 {[%emt 0:00:30]} Ra3+ {[%emt 0:00:11]} 65. Kf2 {[%emt 0:00:09]} e4 {[%emt 0:00:31]} 66. Kg2 {[%emt 0:00:13]} Ra4 {[%emt 0:03:49]} 67. Kg3 {[%emt 0:01:03]} e3 {[%emt 0:00:43]} 68. Kf3 {[%emt 0:00:10] [#]} Rxg4 $3 {[%emt 0:00:23][%mdl 576] Deflection, Promotion} 69. Kxe3 {[%emt 0:00:03]} h5 {[%emt 0:00:26][%cal Bh6h5,Bh5h4][%mdl 32]} 70. Kf3 {[%emt 0:00:08]} Rg5 {[%emt 0:00:39]} 71. Kf2 {[%emt 0:00:42]} h4 {[%emt 0:00:09] A superb game by Fizer.   Weighted Error Value: White=0.68/Black=0.37} 0-1

[Event "CZE-ch U16 Open 2023"]
[Site "Teplice"]
[Date "2023.03.16"]
[Round "7.3"]
[White "Seidl, Jan"]
[Black "Paseka, Matyas"]
[Result "0-1"]
[ECO "E63"]
[WhiteElo "2025"]
[BlackElo "2082"]
[Annotator "TA"]
[PlyCount "94"]
[EventDate "2023.03.09"]
[EventType "swiss"]
[EventCountry "CZE"]
[SourceTitle "playchess.com"]
[Source "ChessBase"]
[SourceQuality "1"]
[TimeControl "40/5400+30:1800+30"]

{[%evp 24,94,5,4,47,43,120,120,127,131,129,120,139,125,125,138,140,148,142,139,172,158,166,147,146,146,144,151,147,146,166,147,193,196,239,239,235,201,277,161,142,53,166,166,172,161,172,160,173,161,158,150,180,180,206,206,316,316,312,282,337,330,372,329,331,320,345,-704,-687,-660,-652,-661,-631]} 1. d4 {[%emt 0:00:25]} Nf6 {[%emt 0:00:09]} 2. c4 {[%emt 0:00:05]} g6 {[%emt 0:00:08]} 3. Nf3 {[%emt 0:00:10]} Bg7 {[%emt 0:00:07]} 4. g3 {[%emt 0:00:12]} O-O {[%emt 0:00:10]} 5. Bg2 {[%emt 0:00:02]} d6 {[%emt 0:00:10]} 6. O-O {[%emt 0:00:08]} a6 {[%emt 0:00:08]} 7. Nc3 {[%emt 0:00:18]} Nc6 {[%emt 0:00:07]} 8. h3 {[%emt 0:00:11]} Bd7 {[%emt 0:00:20]} 9. e4 e5 {[%emt 0:00:16]} 10. Be3 {[%emt 0:05:36]} exd4 {[%emt 0:02:31]} 11. Nxd4 {[%emt 0:00:14]} Re8 {[%emt 0:00:41]} 12. Re1 {[%emt 0:01:17]} Qc8 {[%emt 0:05:17]} 13. Kh2 {[%emt 0:00:10]} Re5 {[%emt 0:01:48] E63: King's Indian: Fianchetto: Panno Variation with 7...a6.} 14. g4 {[%emt 0:29:40] [#]} Bxg4 $146 {[%emt 0:12:55]} ({Predecessor:} 14... Nxg4+ 15. hxg4 Bxg4 16. f3 Rh5+ 17. Kg1 Bh3 18. Nxc6 bxc6 19. Qd2 Rb8 20. Rac1 Be5 21. b3 {1-0 Yevseev,D (2520)-Erdogdu,M (2489) Lvov Vasylyshyn Memorial 2009 (2)}) 15. hxg4 $16 {[%emt 0:00:40]} Nxg4+ {[%emt 0:00:08] White is better.} 16. Kg1 {[%emt 0:00:12]} Nxe3 {[%emt 0:00:25]} 17. Rxe3 {[%emt 0:05:50]} Rc5 {[%emt 0:07:46]} 18. Nxc6 {[%emt 0:05:39]} bxc6 {[%emt 0:00:09]} 19. Qd3 {[%emt 0:03:34]} Rb8 {[%emt 0:01:16]} 20. b3 {[%emt 0:00:37]} Rh5 {[%emt 0:00:54]} 21. Rf1 {[%emt 0:05:01]} c5 {[%emt 0:16:10]} 22. Ne2 {[%emt 0:01:07]} Qg4 {[%emt 0:02:58]} 23. Rg3 {[%emt 0:03:53]} Qh4 {[%emt 0:00:52][%csl Gh5][%cal Rh4h2]} 24. Rh3 {[%emt 0:00:14] Prevents Qh2+.} Qg4 {[%emt 0:00:20] And now ...Rxh3 would win.} 25. Qf3 {[%emt 0:04:02]} Qxf3 {[%emt 0:01:26]} 26. Rxf3 {[%emt 0:00:12]} Re8 {[%emt 0:02:06]} 27. Rd3 {[%emt 0:01:00]} Rhe5 {[%emt 0:04:27]} (27... Rh4 $16 28. Re1 h5) 28. Nf4 $18 {[%emt 0:02:29]} f5 {[%emt 0:04:04]} 29. exf5 $1 {[%emt 0:01:02]} Rxf5 {[%emt 0:00:10]} 30. Nd5 {[%emt 0:00:40]} Bd4 {[%emt 0:01:51]} 31. Rd2 {[%emt 0:05:00]} (31. Nxc7 $142 Re2 32. Bf3 (32. Nxa6 Bxf2+ 33. Kh2 Rxa2 $16) 32... Rg5+ 33. Kh1 Rxa2 34. Ne6) 31... Rf7 {[%emt 0:02:22] [#]} 32. Ne3 {[%emt 0:03:40]} Kg7 {[%emt 0:06:40]} ({Black should try} 32... Bxe3 $14 33. fxe3 Rxf1+ 34. Kxf1 Rxe3) 33. Nc2 {[%emt 0:00:42]} Be5 {[%emt 0:00:09]} 34. Bd5 {[%emt 0:00:37]} Rf4 {[%emt 0:00:22]} 35. f3 {[%emt 0:00:50]} Ref8 {[%emt 0:01:26]} 36. Rb1 {[%emt 0:00:37]} a5 {[%emt 0:02:01]} 37. Rg2 {[%emt 0:00:40]} R8f5 {[%emt 0:00:58]} 38. Kf2 {[%emt 0:00:48]} Rf8 {[%emt 0:04:00]} 39. Ke2 {[%emt 0:00:56]} h6 {[%emt 0:02:32]} (39... Rb8 $142 40. Be4 Rh4) 40. Be4 {[%emt 0:01:38]} g5 {[%emt 0:00:07]} 41. Ne3 {[%emt 0:30:51]} Bd4 {[%emt 0:33:45]} 42. Rh1 {[%emt 0:02:26]} Re8 {[%emt 0:06:20]} 43. Kd2 {[%emt 0:02:35]} Bxe3+ {[%emt 0:01:37]} 44. Kxe3 {[%emt 0:00:15]} Re5 {[%emt 0:01:57]} 45. Rg4 $4 {[%emt 0:03:13][%mdl 8192] [#]} (45. Rgh2 $18) 45... Rexe4+ $1 $19 {[%emt 0:00:18][%mdl 576] Deflection. Black is clearly winning.} 46. fxe4 {[%emt 0:00:21]} (46. Kf2 Rxg4) 46... Rxg4 {[%emt 0:00:18]} 47. Rb1 {[%emt 0:00:13]} Kf6 {Weighted Error Value: White=0.33/Black=0.25 (precise)} 0-1

[Event "CZE-ch U16 Open 2023"]
[Site "Teplice"]
[Date "2023.03.16"]
[Round "7.4"]
[White "Simunek, Jakub Simon"]
[Black "Dolensky, Filip"]
[Result "1/2-1/2"]
[ECO "B40"]
[WhiteElo "1970"]
[BlackElo "2108"]
[Annotator "TA"]
[PlyCount "85"]
[EventDate "2023.03.09"]
[EventType "swiss"]
[EventCountry "CZE"]
[SourceTitle "playchess.com"]
[Source "ChessBase"]
[SourceQuality "1"]
[TimeControl "40/5400+30:1800+30"]

{[%evp 13,85,14,13,-4,0,6,25,0,0,-21,-22,-31,-25,-65,-30,-32,0,0,0,0,6,6,0,-27,0,0,0,0,0,0,0,0,0,-2,57,0,46,52,34,22,56,51,66,66,62,62,48,15,70,62,52,48,38,17,17,17,173,164,145,8,23,0,8,0,2,2,2,0,2,2,2,2,2,2]} 1. e4 {[%emt 0:00:02]} c5 {[%emt 0:02:02]} 2. Nf3 {[%emt 0:00:18]} e6 {[%emt 0:00:16]} 3. c3 {[%emt 0:00:06]} d5 {[%emt 0:00:44]} 4. exd5 {[%emt 0:00:08]} Qxd5 {[%emt 0:00:15]} 5. d4 {[%emt 0:01:44]} Nf6 {[%emt 0:00:48]} 6. Na3 {[%emt 0:05:09][%cal Bb1a3,Ba3c4,Bc4e5][%mdl 32]} a6 {[%emt 0:01:48]} 7. Nc4 {[%emt 0:11:25]} Nbd7 {[%emt 0:02:23]} 8. Bd3 {[%emt 0:05:59] B22: Sicilian: 2 c3.} Be7 {[%emt 0:02:22]} 9. O-O {[%emt 0:01:45]} O-O {[%emt 0:07:40] [#]} 10. Bg5 $146 {[%emt 0:09:15] White has an edge.} ({Predecessor:} 10. Re1 b5 11. Ne3 Qd6 12. Qe2 Re8 13. a4 c4 14. Bc2 Bb7 15. a5 Nd5 16. Nxd5 Qxd5 {½-½ Solomonova,L (2168)-Fatalibekova,E (2140) St Petersburg-ch Seniors (Women) 2022 (8)}) 10... b5 {[%emt 0:09:39]} 11. Nce5 {[%emt 0:05:00]} cxd4 {[%emt 0:06:16]} 12. cxd4 {[%emt 0:01:33]} Bb7 {[%emt 0:02:36]} 13. Rc1 {[%emt 0:16:08]} Rad8 {[%emt 0:16:22]} 14. Bb1 {[%emt 0:19:15]} Nxe5 {[%emt 0:18:43]} (14... Rc8 {is more complex.} 15. Qe2 Rxc1 16. Rxc1 h6) 15. dxe5 {[%emt 0:00:29]} Qxd1 {[%emt 0:01:05]} 16. Rfxd1 {[%emt 0:00:08]} Nd5 {[%emt 0:02:35][%cal Bf6d5,Bd5e7,Be7c8][%mdl 32] Black is weak on the dark squares} 17. Bxe7 {[%emt 0:07:25]} Nxe7 {[%emt 0:00:08]} 18. Rd6 {[%emt 0:00:20]} Nc8 {[%emt 0:05:41]} (18... Rc8 $5 {[%cal Rc8c1]} 19. Rcd1 Bxf3 20. gxf3 a5 $11) 19. Rxd8 {[%emt 0:00:57]} Rxd8 {[%emt 0:00:02]} 20. Ng5 {[%emt 0:00:18]} h6 {[%emt 0:03:29]} 21. Be4 {[%emt 0:00:48]} Bxe4 {[%emt 0:00:49]} 22. Nxe4 $11 {[%emt 0:00:05][%mdl 4096] Endgame KRN-KRN} Ne7 {[%emt 0:00:52]} 23. g3 $1 {[%emt 0:00:23]} Rc8 {[%emt 0:01:47]} (23... Rd5 $11) 24. Rc5 {[%emt 0:03:11]} (24. Rxc8+ $14 Nxc8 25. Nc5) 24... Rxc5 {[%emt 0:00:41]} (24... Rd8 $11 {was preferrable.}) 25. Nxc5 {[%emt 0:00:16] KN-KN} a5 {[%emt 0:00:39]} 26. f4 {[%emt 0:02:07]} Nc6 {[%emt 0:00:15]} 27. Kf2 {[%emt 0:00:57]} Kf8 {[%emt 0:00:38]} 28. Ke3 {[%emt 0:00:51]} Ke7 {[%emt 0:00:14]} 29. Ke4 {[%emt 0:02:12]} f6 {[%emt 0:01:19]} 30. Nb7 {[%emt 0:04:10]} a4 {[%emt 0:04:41]} (30... fxe5 $11 31. fxe5 g6) 31. a3 {[%emt 0:01:31]} (31. Nd6 $5 {[%cal Rd6b5]}) 31... Kd7 {[%emt 0:02:36]} 32. Nd6 {[%emt 0:00:13]} b4 {[%emt 0:00:56]} 33. Nb5 {[%emt 0:01:18]} bxa3 {[%emt 0:00:44]} 34. bxa3 {[%emt 0:00:08] And now exf6 would win.} Na5 $2 {[%emt 0:00:47]} (34... fxe5 $11 35. fxe5 Na5) 35. exf6 $18 {[%emt 0:01:32]} gxf6 {[%emt 0:00:10] [#]} 36. Nc3 {[%emt 0:00:12]} (36. Kd3 $1 $16) 36... Nc4 $11 {[%emt 0:00:13]} 37. Nxa4 {[%emt 0:00:04]} Nxa3 {[%emt 0:00:18] The position is equal.} 38. f5 {[%emt 0:00:18]} e5 {[%emt 0:01:01]} 39. Nc3 {[%emt 0:00:34] Strongly threatening Nd5.} Ke7 {[%emt 0:00:16]} 40. Kd3 {[%emt 0:00:27]} Kf7 {[%emt 0:01:34]} 41. g4 {[%emt 0:30:33]} Kg7 {[%emt 0:31:15]} 42. h4 {[%emt 0:00:00]} Kf7 {[%emt 0:00:00]} 43. Ke4 {Weighted Error Value: White=0.17 (very precise) /Black=0.20 (precise)} 1/2-1/2

[Event "CZE-ch U16 Open 2023"]
[Site "Teplice"]
[Date "2023.03.16"]
[Round "7.5"]
[White "Hladky, Tadeas"]
[Black "Mametev, Artem"]
[Result "0-1"]
[ECO "C03"]
[WhiteElo "1973"]
[BlackElo "2074"]
[Annotator "TA"]
[PlyCount "88"]
[EventDate "2023.03.09"]
[EventType "swiss"]
[EventCountry "CZE"]
[SourceTitle "playchess.com"]
[Source "ChessBase"]
[SourceQuality "1"]
[TimeControl "40/5400+30:1800+30"]

{[%evp 12,88,0,0,0,0,0,0,0,2,1,0,0,-12,0,-15,-16,-39,-35,-50,-50,-52,-39,-43,-24,-15,-13,-77,-65,-60,-59,-64,-51,-95,-102,-131,-93,-123,-127,-143,-147,-142,-114,-107,-107,-127,-106,-134,-136,-131,0,0,0,0,0,0,0,0,0,0,0,0,0,0,0,0,0,0,0,0,0,0,0,0,0,0,0,-29979,-29980]} 1. e4 {[%emt 0:00:02] ChessBase II} e6 {[%emt 0:00:04]} 2. d4 {[%emt 0:00:04]} d5 {[%emt 0:00:03]} 3. Nd2 {[%emt 0:00:06]} a6 {[%emt 0:00:03]} 4. Ngf3 {[%emt 0:00:25]} Nf6 {[%emt 0:00:14]} 5. Bd3 {[%emt 0:00:19]} c5 {[%emt 0:00:14]} 6. dxc5 {[%emt 0:00:06]} dxe4 {[%emt 0:00:14]} 7. Nxe4 {[%emt 0:00:09]} Nxe4 {[%emt 0:00:11] C03: French Tarrasch: Unusual Black 3rd moves.} 8. Bxe4 {[%emt 0:00:05] Qxd8+ would be deadly.} Qxd1+ {[%emt 0:00:07]} 9. Kxd1 {[%emt 0:00:03]} Bxc5 {[%emt 0:00:06] The position is equal.} 10. Ke2 {[%emt 0:00:28]} Nd7 {[%emt 0:02:42]} (10... f5 $5 11. Bd3 $8 Nc6 $11) 11. c3 {[%emt 0:00:18]} Nf6 {[%emt 0:00:20]} 12. Bd3 {[%emt 0:01:26] [#]} b6 $146 {[%emt 0:02:41]} ({Predecessor:} 12... Bd6 13. c4 Bd7 14. b3 e5 15. Ng5 Bc6 16. f3 h6 17. Ne4 Nxe4 18. Bxe4 Bxe4 19. fxe4 {1-0 Schroll,G (2449)-Svane,R (2216) EU-ch 12th Aix les Bains 2011 (8)}) 13. Be3 {[%emt 0:08:16]} Bxe3 {[%emt 0:01:04]} 14. fxe3 {[%emt 0:00:10]} Bb7 {[%emt 0:01:10]} 15. Rhd1 {[%emt 0:02:32]} Ke7 {[%emt 0:29:43]} 16. Rac1 {[%emt 0:03:34]} Rad8 {[%emt 0:06:02]} 17. b4 {[%emt 0:07:33] [#]} g5 $1 {[%emt 0:10:34][%cal Bg7g5,Bg5g4][%mdl 32]} 18. c4 {[%emt 0:04:37]} g4 {[%emt 0:02:59]} 19. Ne1 {[%emt 0:09:51]} (19. Ne5 $1 $11 {remains equal.}) 19... Ne4 {[%emt 0:05:16]} (19... Rc8 {simplifies} 20. Kf1 Rhd8 21. Be2 Rxd1 22. Bxd1 a5) 20. c5 {[%emt 0:10:39]} bxc5 {[%emt 0:05:52]} 21. bxc5 {[%emt 0:01:42] Threatens to win with c6.} Bc6 {[%emt 0:00:46]} 22. Rc4 {[%emt 0:12:38]} f5 $36 {[%emt 0:06:47][%mdl 2048] ...Bb5 is the strong threat. Black is really pushing. Black is much more active.} 23. Rb1 {[%emt 0:00:26]} Rc8 {[%emt 0:09:58]} 24. Rcc1 {[%emt 0:02:42]} Bd5 {[%emt 0:02:18]} 25. Bxa6 {[%emt 0:03:15]} Rxc5 {[%emt 0:00:25]} 26. Nd3 {[%emt 0:06:40]} Rxc1 {[%emt 0:01:00]} 27. Rxc1 {[%emt 0:00:06]} Bxa2 {[%emt 0:01:22]} 28. Nb4 {[%emt 0:09:24]} Bb3 {[%emt 0:01:48]} 29. Rc7+ {[%emt 0:00:09]} Kf6 {[%emt 0:00:59]} 30. Bd3 {[%emt 0:00:13]} Bd5 {[%emt 0:02:03]} (30... Nd6 $17 31. h4 h5) 31. Nxd5+ $11 {[%emt 0:00:56]} exd5 {[%emt 0:00:01]} 32. Bxe4 {[%emt 0:00:22]} dxe4 {[%emt 0:00:02][%mdl 4096] Endgame KR-KR} 33. Kf2 $1 {[%emt 0:01:03]} h5 {[%emt 0:01:59] aiming for ...Kg5.} 34. Kg3 $1 {[%emt 0:00:35]} Ra8 {[%emt 0:01:13]} 35. Kf4 {[%emt 0:07:30]} Ra2 {[%emt 0:00:11]} 36. Rc6+ {[%emt 0:00:03]} Ke7 {[%emt 0:00:32]} 37. Rh6 {[%emt 0:01:22]} Rxg2 {[%emt 0:02:01]} 38. Rxh5 {[%emt 0:00:02]} Rf2+ {[%emt 0:00:48]} 39. Ke5 {[%emt 0:00:23]} f4 {[%emt 0:00:59]} 40. exf4 {[%emt 0:03:58]} e3 {[%emt 0:00:09]} 41. Kd4 {[%emt 0:30:02]} e2 {[%emt 0:30:42]} 42. Re5+ {[%emt 0:00:04]} Kf6 {[%emt 0:01:25]} 43. Kd3 {[%emt 0:00:13]} Rxh2 {[%emt 0:00:17] ( -> ...g3)} 44. Kd2 $2 {[%emt 0:01:41][%mdl 8192] [#]} (44. Rxe2 $11 Rh3+ 45. Ke4) 44... g3 {[%emt 0:01:10] Weighted Error Value: White=0.24 (precise) /Black=0.08 (flawless)} 0-1